Cogmind - Beta 16.1 @@@ ROGUE MODE // 2026.04.11 @ 19:30:32 Player: KURIIRI Result: Destroyed by Piercing Trap Performance ------------- Evolutions (0) 0 Regions Visited (2) 400 Robots Destroyed (58) 290 Value Destroyed (1282) 1282 Prototype IDs (0) 0 Alien Tech Used (0) 0 Bonus (0) 0 TOTAL SCORE: 1972 Bonus ------- None Cogmind --------- Core Integrity 0/250 Matter 300/300 Energy 198/200 System Corruption 0% Temperature Cool (0) Movement Rolling (110) Ox2 Location -10/Subcaves Parts ------- > --- POWER (1) -------- Subdweller Power Source > --- PROPULSION (2) --- Wheel Wheel > --- UTILITY (2) ------ Large Storage Unit > --- WEAPON (2) ------- Subdweller Beam Cannon Subdweller Beam Cannon > --- INVENTORY (15) --- Subdweller Power Source Large Matter Pod (150) Hacking Suite Subdweller Laser Subdweller Beam Cannon Subdweller Beam Cannon Subdweller Beam Cannon Battle Rifle Grenade Launcher Grenade Launcher Peak State ------------ > --- POWER ------------ Makeshift Power Source > --- PROPULSION ------- Light Treads Wheel > --- UTILITY ---------- Large Storage Unit Improved Terrain Scanner > --- WEAPON ----------- Subdweller Beam Cannon Subdweller Beam Cannon > --- INVENTORY -------- Subdweller Power Source Subdweller Power Source Wheel Large Matter Pod High-capacity Matter Pod Hacking Suite Subdweller Laser Beam Cannon Beam Cannon Battle Rifle Subdweller Machine Gun Subdweller Machine Gun Grenade Launcher Grenade Launcher [Rating: 16] Favorites ----------- Power Ion Engine Engine Ion Engine Propulsion Light Treads Treads Light Treads Leg Aluminum Leg Wheel Wheel Utility Large Storage Unit Device Structural Scanner Storage Large Storage Unit Protection Scrap Shield Weapon Subdweller Beam Cannon Energy Gun Medium Laser Energy Cannon Subdweller Beam Cannon Ballistic Gun Assault Rifle Launcher Grenade Launcher Build | -11 -10 -10 ------- Run | Yrd Mat Sub Slots Evolved . | . . . Power . | . . . Propulsion . | . . . Utility . | . . . Weapon . | . . . Parts Attached 26 | 2 10 14 Power 3 | . 1 2 Engine 3 | . 1 2 Core . | . . . Reactor . | . . . Propulsion 5 | 2 . 3 Treads 3 | 2 . 1 Leg . | . . . Wheel 2 | . . 2 Hover . | . . . Flight . | . . . Utility 5 | . 2 3 Device 3 | . 1 2 Storage 1 | . 1 . Processor . | . . . Hackware . | . . . Protection 1 | . . 1 Artifact . | . . . Weapon 13 | . 7 6 Energy Gun . | . . . Energy Cannon 7 | . 3 4 Ballistic Gun 4 | . 2 2 Ballistic Cannon . | . . . Launcher 2 | . 2 . Special Weapon . | . . . Impact Weapon . | . . . Slashing Weapon . | . . . Piercing Weapon . | . . . Special Melee Weapon . | . . . Unidentified Prototypes . | . . . Parts Lost 7 | . 1 6 Power 2 | . 1 1 Propulsion 2 | . . 2 Utility 3 | . . 3 Weapon . | . . . Highest Loss Streak 2 | . 1 2 To Critical Strikes . | . . . Average Backups 11 | 5 10 12 Power 1 | 1 . 1 Propulsion 1 | 3 2 1 Utility 3 | . 3 3 Weapon 5 | 1 4 6 Tool/Special . | . . . Unused Backups 14 | . 1 13 Power 1 | . . 1 Propulsion 1 | . . 1 Utility 5 | . 1 4 Weapon 7 | . . 7 Tool/Special . | . . . Average Slot Usage (%) 97 | . 99 95 Engine 13 | . 13 13 Treads 20 | . 27 16 Wheel 6 | . . 11 Device 11 | . 13 10 Storage 13 | . 14 12 Energy Gun 2 | . 5 . Energy Cannon 19 | . 13 22 Ballistic Gun 6 | . 9 4 Peak Build Rating 16 | 6 8 16 Average Rating 10 | 5 7 12 On Entrance 6 | 6 6 8 Avg Prop Armor Cover (%) 11 | . . 11 Naked Turns . | . . . Heaviest Build 42 | 11 32 42 Greatest Support 40 | 40 40 40 Greatest Overweight (x) 4 | . . 4 Average Overweight (x) 1 | . . 2 Largest Inventory Capacity 15 | 8 15 15 Average Capacity 14 | 8 14 13 Most Carried 15 | 6 15 15 Average Carried 11 | 5 10 12 Final Capacity 15 | 8 15 15 Final Carried 15 | 4 15 10 Class Distribution -------------------- 86% | Mutant 7% | Scavenger-Mutant 5% | Subdweller-Mutant Dominant Class ---------------- Mutant | -10/Materials Mutant | -10/Subcaves Resources | -11 -10 -10 ----------- Run | Yrd Mat Sub Matter Collected 1805 | 225 856 724 Remotely . | . . . Salvage Created 1779 | 103 1043 633 Parts 105 | 4 62 39 Haulers Intercepted 2 | . 2 . Recyclers Shooed 4 | . 4 . Parts Field Recycled . | . . . Retrieved Matter . | . . . Parts Self-Destructed 22 | . . 22 Prevented . | . . . Parts Restored . | . . . Kills | -11 -10 -10 ------- Run | Yrd Mat Sub Combat Hostiles Destroyed 40 | . 20 20 Guns 6 | . 5 1 Cannons 10 | . 3 7 AOE 22 | . 12 10 Classes Destroyed 12 | 2 7 3 Worker 2 | . 2 . Builder 3 | . 3 . Tunneler 3 | 1 2 . Hauler 2 | . 2 . Recycler 5 | 1 4 . Operator 1 | . 1 . Watcher 2 | . 2 . Swarmer 13 | . 9 4 Grunt 11 | . 11 . Sentry 1 | . . 1 Artisan 1 | . . 1 Subdweller 15 | . . 15 Best Kill Streak 6 | 2 6 5 Combat Bots Only 5 | . 5 5 Max Kills in Single Turn 5 | 1 5 3 Gunslinging . | . . . Exploded 3 | . 3 3 Melee . | . . . Uniques/NPCs Destroyed . | . . . Combat | -11 -10 -10 -------- Run | Yrd Mat Sub Hostile Shots Fired 98 | . 44 54 Missed 29 | . 13 16 Hits 69 | . 31 38 Projectile 69 | . 31 38 AOE 5 | . . 5 Damage Taken 1353 | . 307 1046 Core 261 | . 16 245 Absorbed by Shields . | . . . Regen/Repaired (Parts) 66 | . 66 . Core Remaining (%) 100 | 100 . . Volleys Fired 137 | 5 63 69 Largest 2 | 2 2 2 Hottest 160 | 70 120 160 Shots Fired 240 | 10 114 116 Gun 97 | 10 70 17 Cannon 122 | . 36 86 Launcher 21 | . 8 13 Special . | . . . Kinetic 68 | 5 46 17 Thermal 151 | 5 60 86 Explosive 21 | . 8 13 Electromagnetic . | . . . Robot Hit Streak 10 | 2 9 10 Robot Miss Streak 3 | 3 2 3 Penetration Max . | . . . Secondary Targets . | . . . Shots Hit Robots 122 | 4 62 56 Core Hits 77 | 3 46 28 Critical Kills 2 | . . 2 Critical Parts Destroyed . | . . . Critical Strikes 2 | . . 2 Meltdown 2 | . . 2 Melee Attacks . | . . . Impact . | . . . Slashing . | . . . Piercing . | . . . Sneak Attacks . | . . . Combat Hostiles . | . . . Follow-up Attacks . | . . . Damage Inflicted 3601 | 44 1741 1816 Guns 703 | 44 520 139 Cannons 1196 | . 388 808 Explosions 1692 | . 823 869 Melee . | . . . Ramming 10 | . 10 . Kinetic 480 | 6 335 139 Thermal 1419 | 38 573 808 Explosive 1692 | . 823 869 Electromagnetic . | . . . Impact . | . . . Slashing . | . . . Piercing . | . . . Highest Corruption . | . . . Average Corruption . | . . . Corruption Purged . | . . . Corruption Blocked . | . . . Overload Shots . | . . . Overflow Damage 23 | . 23 . Projectiles . | . . . Explosions 23 | . 23 . Melee . | . . . Knockbacks . | . . . Impact . | . . . Kinetic . | . . . Secondary . | . . . Self-Inflicted Damage 39 | . . 39 Shots 1 | . . 1 Rammed 5 | . 5 . Targets Rammed 5 | . 5 . Kicked . | . . . Crushed . | . . . Highest Temperature 165 | 70 165 120 Average Temperature 47 | 36 50 43 Received Heat Transfer 246 | . 132 114 Siege Activations . | . . . Martial Activations . | . . . Shielding Activations . | . . . Robots Disrupted . | . . . Combat Hostiles . | . . . Robots Corrupted . | . . . Combat Hostiles . | . . . Parts Fried . | . . . Impact Corruptions . | . . . Robots Melted 2 | . . 2 Combat Hostiles 2 | . . 2 Parts Melted 11 | . . 11 Heat Transferred 2775 | 111 1369 1295 Parts Sabotaged . | . . . Parts Stolen . | . . . Parts Stripped . | . . . Power Chain Reactions . | . . . Alert | -11 -10 -10 ------- Run | Yrd Mat Sub Maximum Alert Level 1 | . 1 . Low Security (%) 62 | 100 61 . Level 1 37 | . 38 . Level 2 . | . . . Level 3 . | . . . Level 4 . | . . . Level 5 . | . . . High Security . | . . . Max Security . | . . . Peak Influence 270 | 10 270 . Initial . | . . . Average 167 | 2 171 . Influence Increases 807 | 10 697 100 Destroy 0b10 Robot/C 500 | . 400 100 Destroy 0b10 Robot/NC 90 | 10 80 . Destroy Leader 88 | . 88 . Successful Hack 24 | . 24 . Select Force Hacks 60 | . 60 . Destroy Structure 45 | . 45 . Influence Decreases 807 | 10 468 329 Entered New Map 111 | . . 111 Time Decay 679 | 10 458 211 Lost Part 17 | . 10 7 Squads Dispatched 4 | . 4 . Investigation 3 | . 3 . Extermination . | . . . Reinforcement 1 | . 1 . Assault . | . . . Garrison . | . . . Intercept . | . . . Searches Triggered . | . . . Construction Impeded . | . . . Haulers Reinforced . | . . . Active Scanning Responses . | . . . Cargo Convoy Interrupts . | . . . Stealth | -11 -10 -10 --------- Run | Yrd Mat Sub Distress Signals 2 | . 2 . Communications Jammed . | . . . Distress Signals . | . . . Times Spotted 48 | . 31 17 Peak Tracking Total 6 | . 6 3 Tactical Retreats . | . . . Traps | -11 -10 -10 ------- Run | Yrd Mat Sub Traps Triggered 2 | . 1 1 Indirectly . | . . . Trap Hack Attempts . | . . . Triggered . | . . . Disarmed . | . . . Reprogrammed . | . . . Reused . | . . . Traps Extracted . | . . . Installed . | . . . Triggered . | . . . Machines | -11 -10 -10 ---------- Run | Yrd Mat Sub Machines Disabled . | . . . Max in Single Turn . | . . . Machines Repaired . | . . . Machines Dismantled . | . . . Machines Sabotaged . | . . . Overloaded Fab Kills . | . . . Hacking | -11 -10 -10 --------- Run | Yrd Mat Sub Machines Accessed 10 | . 9 1 Terminals 6 | . 6 . Fabricators . | . . . Repair Stations 1 | . 1 . Recycling Units 2 | . 2 . Scanalyzers . | . . . Garrison Access . | . . . Total Hacks 22 | . 21 1 Successful 15 | . 14 1 Failed 7 | . 7 . Catastrophic . | . . . Database Lockouts . | . . . Manual 19 | . 19 . Terminals 17 | . 17 . Fabricators . | . . . Repair Stations 2 | . 2 . Recycling Units 2 | . 2 . Scanalyzers . | . . . Garrison Access . | . . . Terminal Hacks 2 | . 1 1 Robot Analysis 1 | . 1 . Open Door 1 | . . 1 Fabricator Hacks . | . . . Repair Station Hacks 2 | . 2 . Scan Component 1 | . 1 . Repair 1 | . 1 . Recycling Unit Hacks . | . . . Scanalyzer . | . . . Garrison Access Hacks . | . . . Unauthorized Hacks 11 | . 11 . Terminals 9 | . 9 . Assimilate 2 | . 2 . Botnet 1 | . 1 . Operators 1 | . 1 . Skim 5 | . 5 . Fabricators . | . . . Repair Stations . | . . . Recycling Units 2 | . 2 . Tunnel 2 | . 2 . Scanalyzers . | . . . Garrison Access . | . . . Data Cores Recovered . | . . . Used . | . . . Hacking Detections 6 | . 6 . Full Trace Events . | . . . Feedback Events . | . . . Feedback Blocked . | . . . Robot Schematics Acquired . | . . . Robots Built . | . . . Authchips . | . . . Time . | . . . Total Robot Build Rating . | . . . Part Schematics Acquired . | . . . Parts Built . | . . . Authchips . | . . . Time . | . . . Total Part Build Rating . | . . . Part Studies Acquired . | . . . Parts Repaired 1 | . 1 . Time 26 | . 26 . Parts Recycled . | . . . Recycled Matter . | . . . Retrieved Matter . | . . . Retrieved Components . | . . . Parts Scanalyzed . | . . . Part Schematics Acquired . | . . . Parts Damaged . | . . . Bothacking | -11 -10 -10 ------------ Run | Yrd Mat Sub Used RIF Installer . | . . . Robots Hacked . | . . . Non-combat . | . . . Combat . | . . . Robot Hacks Applied . | . . . Relay Couplers Released . | . . . Fabnet Peak Effective % . | . . . Robots Rewired . | . . . Allies Hacked . | . . . Hacks Repelled . | . . . Allies | -11 -10 -10 -------- Run | Yrd Mat Sub Total Allies 1 | . 1 . Largest Group 1 | . 1 1 Highest-Rated Group 10 | . 10 10 Highest-Rated Ally 10 | . 10 10 Total Orders 3 | . 2 1 STAY 2 | . 1 1 FOLLOW 1 | . 1 . Ally Attacks . | . . . Total Damage . | . . . Kills . | . . . Allies Corrupted . | . . . Allies Melted . | . . . Intel | -11 -10 -10 ------- Run | Yrd Mat Sub Active Infowar (turns) 3752 | . 1702 2050 Terrain 970 | . . 970 Structural 2782 | . 1702 1080 Robot Analysis Total 1 | . 1 . Derelict Logs Recovered 2 | . . 2 Drone Launches . | . . . Drone Recoveries . | . . . Exploration | -11 -10 -10 ------------- Run | Yrd Mat Sub Turns Passed 4522 | 46 1726 2750 Spaces Moved 2222 | 21 798 1403 Core . | . . . Treads 1149 | 11 798 340 Legs 10 | 10 . . Wheels 1063 | . . 1063 Hover . | . . . Flight . | . . . Fastest Speed 110 | 120 160 110 Average Speed 146 | 140 160 138 Slowest Speed 240 | 160 160 240 Overloaded Moves . | . . . Propulsion Burnouts . | . . . Robots Hopped . | . . . Potential Cave-ins 4 | . . 4 Cave-ins Triggered . | . . . Exploration Rate (%) 57 | 3 96 74 Regions Visited 2 Branch Regions 1 Pre-discovered Areas 4 | . 3 1 Known Exits Taken 1 | . 1 . Unknown Exits Taken 1 | 1 . . Scrap Searched 6 | . . 6 Spaces Dug 32 | . 23 9 Terrain Destroyed 135 | . 51 84 Melee . | . . . Projectile 11 | . . 11 AOE 124 | . 51 73 Terrain Rammed . | . . . Walls Destroyed . | . . . Machines Disabled . | . . . Actions | -11 -10 -10 --------- Run | Yrd Mat Sub Total 3262 | 29 1125 2108 Wait 791 | . 228 563 Move 2220 | 20 797 1403 Hop . | . . . Pick Up 32 | . 13 19 Fast Attach 11 | . 3 8 Attach 9 | 2 1 6 Detach 5 | . . 5 Swap 19 | . 12 7 Drop 33 | 2 3 28 Fire 137 | 5 63 69 Melee . | . . . Ram . | . . . Kick . | . . . Crush 5 | . 5 . Escape Stasis . | . . . Rewire . | . . . Trap . | . . . Miscellaneous . | . . . Route ------- -11/Scrapyard -10/Materials (discovered 5 exits: [*Mat x3] / [*Min] / *Sub) -10/Subcaves (discovered 3 exits: *Mat x2 / Rec) History --------- Turn | Location | Event 16 | -11/Scrapyard | Discovered new exit (range 3) 47 | -11/Scrapyard | Entered Materials 225 | -10/Materials | Discovered new exit (range 14) 326 | -10/Materials | Build established: Mutant 407 | -10/Materials | Discovered new exit (range 13) 599 | -10/Materials | Discovered new exit (range 5) 1108 | -10/Materials | Repaired Lgt. Treads 1121 | -10/Materials | Learned 4 Subcaves zone layouts 1180 | -10/Materials | Learned location of 2 exits from Subcaves 1229 | -10/Materials | Learned location of 1 exit from Recycling 1270 | -10/Materials | Identified exit to Subcaves 1292 | -10/Materials | Discovered new exit (range 3) 1346 | -10/Materials | Loaded intel: 7 trap records 1383 | -10/Materials | Loaded intel: 1 repair station location 1773 | -10/Materials | Entered Subcaves 1773 | -10/Subcaves | Accompanied by 1 ally 1774 | -10/Subcaves | Identified exit to Recycling 1774 | -10/Subcaves | Identified exit to Materials 2339 | -10/Subcaves | Ambushed by Subdweller buried in earth 2849 | -10/Subcaves | Shifting Twisted Machinery released Shrapnel Trap 2850 | -10/Subcaves | Shifting Twisted Machinery released Mak. Power Source 3833 | -10/Subcaves | Build established: Scavenger-Mutant 3869 | -10/Subcaves | Disturbed a concealed Subdweller 3874 | -10/Subcaves | Core integrity fell below 50% 4304 | -10/Subcaves | Core integrity fell below 20% 4523 | -10/Subcaves | Destroyed by Piercing Trap Last Messages --------------- 04295_ AW-DH3(R): "SUBHATE!" 04303_ Lgt. Treads destroyed. 04303_ Scrap Shield destroyed. 04304_ Sub. Beam Cannon shoots sparks and powers down. 04304_ AW-DH3(R) destroyed. 04342_ Acquired Sub. Beam Cannon. 04344_ Acquired Grenade Launcher. 04349_ Acquired Sub. Laser. 04351_ Acquired Sub. Power Source. 04352_ Extracted 30 matter. 04353_ Acquired Lrg. Matter Pod. 04355_ Acquired Battle Rifle. 04392_ Acquired 6 matter. 04409_ Acquired 10 matter. 04501_ RP-LBZ(R) destroyed. 04512_ Acquired 14 matter. 04523_ Triggered Piercing Trap. 04523_ Spikes shoot up from the floor. 04523_ Critical hit (Impale). Map ----- +----------------------------------------------------+ | # # ##??????????????????## ######??????? | | # ##?????????????????# < #??????????? | | # ## #?????????????????#" #??????????? | | ## ### #?????????????????## #??????????? | | ?# ## #??????????????????#### ##??????????? | | ?# #?????????????????????# ##???????????? | | ## #####???????????????????# #####????????? | | # #??#???????????????????## #????????? | | # ?? #???????####?????????# #????????? | | # # ???##?????##" ?????????## #????????? | | ### #####?? ?####### " ????????## #????????? | | ??# #####? ? ## ## ""??????### #????????? | | ### ## ??? "" "" "???#### ##????????? | | ???? """##"""## #### ##?????????? | | # ? ?### #""#### ## ##??????????? | | # ###??###" #" #??# ##???????????? | | # ####?# "" # ##?## ## ####????????????? | | ##?? #"" ##?# ## #???????????????? | | ### ######&=### ;; ##???????????????? | | # #?#### ##"&%[!#; ###??????????????? | | ??????????????????##*&& % ####???????????? | | ???????????????????# # #???????????? | | ???????????##??????### ##???????????? | | ?????????? #### ## ####????????????? | | ?????????? #?##???????????????? | | ?????????? @ #??????????????????? | | ?????????? #??????????????????? | | ???????????## ### #?????????????????? | | ????????????## ???## #?????????????????? | | ?????????????#??????# #?????????????????? | | ???????????????????# ^## ####?????????????????? | | ?????????????????? ^ #####????????????????????? | | ????????????????? ##????????????????????????? | | ???????????????? #??????????????????????????? | | ???????????????## ####???????????????????????????? | | ????????????????##???????????????????????????????? | | ?????????????????????????????????????????????????? | | ?????????????????????????????????????????????????? | | ?????????????????????????????????????????????????? | | ?????????????????????????????????????????????????? | | ?????????????????????????????????????????????????? | | ?????????????????????????????????????????????????? | | ?????????????????????????????????????????????????? | | ?????????????????????????????????????????????????? | | ?????????????????????????????????????????????????? | | ?????????????????????????????????????????????????? | | ?????????????????????????????????????????????????? | | ?????????????????????????????????????????????????? | | ?????????????????????????????????????????????????? | | ?????????????????????????????????????????????????? | +----------------------------------------------------+ Best States ------------- Heat Dissipation 25 Coolant Potential 50 Energy Generation 15 Energy Capacity 250 Matter Stores 300 Matter Capacity 300 Sight Range 16 Terrain Scan Range 16 Terrain Scan Density 10 Armor Coverage 800 Evasion (%) 45 Recoil Reduction 2 Item Schematics ----------------- None Robot Schematics ------------------ None Fabricated ------------ Nothing Repaired ---------- Lgt. Treads | 52% | -10/Materials Studied --------- None Alien Tech Used ----------------- None Achievements -------------- None Challenges ------------ None Game ------ Seed PlatingCompactImmobilizer Manual? 0 Play Time 00:28:09 Cumulative 405.0 hours Start 2026.04.11 @ 18:39:41 End 2026.04.11 @ 19:30:32 Sessions 1 Manual Loads 0 Difficulty Rogue Special Mode None Game No. 346 Rogue 310 Adventurer 36 Explorer 0 Win Type - Total 5 Types 2/0/0/1/0/0/0/2/0/0 Lore% 75 Gallery% 67 Achievement% 56 Wizard Run 0 Options --------- Layout 1 ASCII 0 Keyboard 0 Movement Numpad Keybinds 0 Fullscreen 1 Font 48/Smallcaps Map View 50x35 Zoom Use 0% Tactical HUD 1 Map Filters NONE Filters NONE Steam 1 RUN: 7a7bfdea-04d4-4328-b12c-b03ee52af7cb